[Event "Titled Tuesday Blitz March 21 Late 2023"]
[White "Ronka, Erik"]
[Black "Bilych, Olexiy"]
[WhiteFideId "505080"]
[BlackFideId "14156504"]
[WhiteElo "2264"]
[BlackElo "2320"]
[Result "0-1"]
[Round "05"]
[TimeControl "180+2"]
[Date "2023.03.21"]
[WhiteClock "0:00:09"]
[BlackClock "0:00:13"]

1. e4 {[%clk 0:02:58]}  c5 {[%clk 0:02:59]} 2. Nf3 {[%clk 0:02:58]}  Nc6 {[%clk 0:02:59]} 3. d4 {[%clk 0:02:58]}  cxd4 {[%clk 0:03:00]} 4. Nxd4 {[%clk 0:02:59]}  e6 {[%clk 0:03:01]} 5. Nc3 {[%clk 0:02:59]}  Qc7 {[%clk 0:03:01]} 6. Qd3 {[%clk 0:02:58]}  Nf6 {[%clk 0:02:56]} 7. Ndb5 {[%clk 0:02:58]}  Qb8 {[%clk 0:02:55]} 8. Qg3 {[%clk 0:02:58]}  d6 {[%clk 0:02:54]} 9. Be3 {[%clk 0:02:57]}  a6 {[%clk 0:02:51]} 10. Nd4 {[%clk 0:02:57]}  Bd7 {[%clk 0:02:49]} 11. Be2 {[%clk 0:02:56]}  b5 {[%clk 0:02:42]} 12. a3 {[%clk 0:02:54]}  Be7 {[%clk 0:02:15]} 13. O-O {[%clk 0:02:26]}  O-O {[%clk 0:02:15]} 14. Rad1 {[%clk 0:02:02]}  Re8 {[%clk 0:02:04]} 15. f4 {[%clk 0:01:21]}  Nxd4 {[%clk 0:01:52]} 16. Bxd4 {[%clk 0:01:20]}  Bc6 {[%clk 0:01:44]} 17. Bf3 {[%clk 0:00:51]}  e5 {[%clk 0:01:32]} 18. fxe5 {[%clk 0:00:25]}  dxe5 {[%clk 0:01:33]} 19. Bxe5 {[%clk 0:00:20]}  Bc5+ {[%clk 0:01:30]} 20. Bd4 {[%clk 0:00:20]}  Qb6 {[%clk 0:01:18]} 21. Qf2 {[%clk 0:00:20]}  Bxd4 {[%clk 0:01:18]} 22. Qxd4 {[%clk 0:00:21]}  Qc7 {[%clk 0:01:10]} 23. Rfe1 {[%clk 0:00:14]}  Re5 {[%clk 0:00:58]} 24. Qd6 {[%clk 0:00:13]}  Qxd6 {[%clk 0:00:55]} 25. Rxd6 {[%clk 0:00:12]}  Bb7 {[%clk 0:00:55]} 26. Kf2 {[%clk 0:00:12]}  Rae8 {[%clk 0:00:55]} 27. Rb6 {[%clk 0:00:10]}  R8e7 {[%clk 0:00:54]} 28. Rd1 {[%clk 0:00:09]}  h6 {[%clk 0:00:53]} 29. Re1 {[%clk 0:00:09]}  h5 {[%clk 0:00:41]} 30. h3 {[%clk 0:00:09]}  h4 {[%clk 0:00:41]} 31. Rd6 {[%clk 0:00:06]}  Rc7 {[%clk 0:00:32]} 32. Rd4 {[%clk 0:00:06]}  g6 {[%clk 0:00:31]} 33. a4 {[%clk 0:00:06]}  Kg7 {[%clk 0:00:29]} 34. axb5 {[%clk 0:00:06]}  axb5 {[%clk 0:00:30]} 35. Rb4 {[%clk 0:00:06]}  Bc6 {[%clk 0:00:30]} 36. Rd1 {[%clk 0:00:06]}  Rce7 {[%clk 0:00:28]} 37. Rdd4 {[%clk 0:00:06]}  g5 {[%clk 0:00:25]} 38. Nd5 {[%clk 0:00:06]}  Rd7 {[%clk 0:00:16]} 39. Nxf6 {[%clk 0:00:05]}  Kxf6 {[%clk 0:00:16]} 40. Rxd7 {[%clk 0:00:05]}  Bxd7 {[%clk 0:00:16]} 41. Ke3 {[%clk 0:00:06]}  Rc5 {[%clk 0:00:15]} 42. c3 {[%clk 0:00:06]}  Ke5 {[%clk 0:00:16]} 43. Rd4 {[%clk 0:00:06]}  Be6 {[%clk 0:00:15]} 44. Rd2 {[%clk 0:00:05]}  b4 {[%clk 0:00:13]} 45. cxb4 {[%clk 0:00:05]}  Rc4 {[%clk 0:00:13]} 46. Rd4 {[%clk 0:00:05]}  Rc2 {[%clk 0:00:13]} 47. Rd2 {[%clk 0:00:05]}  Rc4 {[%clk 0:00:13]} 48. b5 {[%clk 0:00:05]}  Rb4 {[%clk 0:00:13]} 49. Rd8 {[%clk 0:00:04]}  Rb3+ {[%clk 0:00:12]} 50. Kd2 {[%clk 0:00:04]}  Rxb2+ {[%clk 0:00:12]} 51. Kc3 {[%clk 0:00:04]}  Rb3+ {[%clk 0:00:13]} 52. Kc2 {[%clk 0:00:04]}  Rxb5 {[%clk 0:00:13]} 53. Kd3 {[%clk 0:00:04]}  Ra5 {[%clk 0:00:12]} 54. Ke3 {[%clk 0:00:04]}  Ra3+ {[%clk 0:00:12]} 55. Rd3 {[%clk 0:00:04]}  Ra4 {[%clk 0:00:12]} 56. Rc3 {[%clk 0:00:04]}  Ra1 {[%clk 0:00:12]} 57. Rc5+ {[%clk 0:00:04]}  Kf6 {[%clk 0:00:10]} 58. Rc6 {[%clk 0:00:04]}  Ra5 {[%clk 0:00:09]} 59. Bg4 {[%clk 0:00:04]}  Ke5 {[%clk 0:00:08]} 60. Bxe6 {[%clk 0:00:04]}  fxe6 {[%clk 0:00:09]} 61. Rc4 {[%clk 0:00:04]}  Ra3+ {[%clk 0:00:09]} 62. Kf2 {[%clk 0:00:04]}  Kf4 {[%clk 0:00:10]} 63. Rc8 {[%clk 0:00:04]}  Ra2+ {[%clk 0:00:10]} 64. Kg1 {[%clk 0:00:04]}  Kxe4 {[%clk 0:00:09]} 65. Rc5 {[%clk 0:00:04]}  e5 {[%clk 0:00:09]} 66. Rc4+ {[%clk 0:00:03]}  Kd3 {[%clk 0:00:09]} 67. Rg4 {[%clk 0:00:04]}  e4 {[%clk 0:00:08]} 68. Rxg5 {[%clk 0:00:04]}  Ra1+ {[%clk 0:00:08]} 69. Kf2 {[%clk 0:00:04]}  e3+ {[%clk 0:00:09]} 70. Kf3 {[%clk 0:00:04]}  Rf1+ {[%clk 0:00:09]} 71. Kg4 {[%clk 0:00:05]}  e2 {[%clk 0:00:10]} 72. Rd5+ {[%clk 0:00:05]}  Kc4 {[%clk 0:00:10]} 73. Re5 {[%clk 0:00:05]}  e1=Q {[%clk 0:00:10]} 74. Rxe1 {[%clk 0:00:06]}  Rxe1 {[%clk 0:00:11]} 75. Kxh4 {[%clk 0:00:06]}  Kd5 {[%clk 0:00:12]} 76. Kg5 {[%clk 0:00:07]}  Ke6 {[%clk 0:00:13]} 77. Kg6 {[%clk 0:00:07]}  Rg1 {[%clk 0:00:12]} 78. g4 {[%clk 0:00:07]}  Rg3 {[%clk 0:00:12]} 79. g5 {[%clk 0:00:07]}  Rxh3 {[%clk 0:00:12]} 80. Kg7 {[%clk 0:00:08]}  Rg3 {[%clk 0:00:13]} 81. g6 {[%clk 0:00:09]}  Kf5 {[%clk 0:00:13]} 0-1


[Site "https://www.chess.com"]

[Event "Titled Tuesday Blitz March 21 Late 2023"]
[White "Guzman Moneo, Alberto"]
[Black "Korchmar, Vasiliy"]
[WhiteFideId "2209616"]
[BlackFideId "24131750"]
[WhiteElo "2157"]
[BlackElo "2370"]
[Result "0-1"]
[Round "05"]
[TimeControl "180+2"]
[Date "2023.03.21"]
[WhiteClock "0:00:09"]
[BlackClock "0:00:59"]

1. e4 {[%clk 0:02:57]}  c5 {[%clk 0:03:00]} 2. Nc3 {[%clk 0:02:55]}  d6 {[%clk 0:03:00]} 3. Nge2 {[%clk 0:02:52]}  Nc6 {[%clk 0:03:00]} 4. g3 {[%clk 0:02:51]}  g6 {[%clk 0:03:00]} 5. d4 {[%clk 0:02:49]}  cxd4 {[%clk 0:03:01]} 6. Nxd4 {[%clk 0:02:49]}  Bg7 {[%clk 0:03:02]} 7. Be3 {[%clk 0:02:49]}  Nf6 {[%clk 0:03:01]} 8. h3 {[%clk 0:02:46]}  Bd7 {[%clk 0:03:02]} 9. Bg2 {[%clk 0:02:46]}  Qc8 {[%clk 0:03:02]} 10. g4 {[%clk 0:02:43]}  Ne5 {[%clk 0:03:00]} 11. O-O {[%clk 0:02:38]}  Nc4 {[%clk 0:03:00]} 12. Bc1 {[%clk 0:02:37]}  h5 {[%clk 0:02:36]} 13. g5 {[%clk 0:02:32]}  Nh7 {[%clk 0:02:36]} 14. h4 {[%clk 0:02:31]}  Bg4 {[%clk 0:02:31]} 15. Qd3 {[%clk 0:01:57]}  O-O {[%clk 0:02:27]} 16. f3 {[%clk 0:01:42]}  Bd7 {[%clk 0:02:27]} 17. f4 {[%clk 0:01:39]}  Qc5 {[%clk 0:02:26]} 18. Ne2 {[%clk 0:01:09]}  e5 {[%clk 0:02:25]} 19. b3 {[%clk 0:01:09]}  Nb6 {[%clk 0:02:03]} 20. f5 {[%clk 0:00:51]}  Rfc8 {[%clk 0:01:58]} 21. f6 {[%clk 0:00:48]}  Bf8 {[%clk 0:01:58]} 22. Be3 {[%clk 0:00:46]}  exd4 {[%clk 0:01:58]} 23. Nxd4 {[%clk 0:00:46]}  Qc3 {[%clk 0:01:45]} 24. Rad1 {[%clk 0:00:39]}  Bg4 {[%clk 0:01:41]} 25. Rd2 {[%clk 0:00:38]}  Qxd3 {[%clk 0:01:41]} 26. Rxd3 {[%clk 0:00:38]}  Nd7 {[%clk 0:01:40]} 27. c4 {[%clk 0:00:29]}  a6 {[%clk 0:01:40]} 28. Re1 {[%clk 0:00:26]}  Ndxf6 {[%clk 0:01:34]} 29. Nc2 {[%clk 0:00:19]}  Nd7 {[%clk 0:01:32]} 30. Bd4 {[%clk 0:00:14]}  Ne5 {[%clk 0:01:31]} 31. Rg3 {[%clk 0:00:12]}  Be7 {[%clk 0:01:31]} 32. Rf1 {[%clk 0:00:11]}  Nf8 {[%clk 0:01:30]} 33. Ne3 {[%clk 0:00:11]}  Be6 {[%clk 0:01:27]} 34. Nf5 {[%clk 0:00:10]}  Rc7 {[%clk 0:01:13]} 35. Nh6+ {[%clk 0:00:08]}  Kg7 {[%clk 0:01:10]} 36. Bxe5+ {[%clk 0:00:07]}  dxe5 {[%clk 0:01:10]} 37. Rgf3 {[%clk 0:00:07]}  Bc5+ {[%clk 0:01:06]} 38. Kh2 {[%clk 0:00:07]}  b5 {[%clk 0:01:06]} 39. Bh3 {[%clk 0:00:08]}  Raa7 {[%clk 0:01:05]} 40. Bxe6 {[%clk 0:00:07]}  Nxe6 {[%clk 0:01:06]} 41. cxb5 {[%clk 0:00:05]}  axb5 {[%clk 0:01:07]} 42. Rf6 {[%clk 0:00:06]}  Rxa2+ {[%clk 0:01:05]} 43. Kg3 {[%clk 0:00:05]}  Nf4 {[%clk 0:01:05]} 44. R1xf4 {[%clk 0:00:05]}  exf4+ {[%clk 0:01:05]} 45. Kxf4 {[%clk 0:00:06]}  Rf2+ {[%clk 0:01:02]} 46. Ke5 {[%clk 0:00:07]}  Rxf6 {[%clk 0:01:00]} 47. gxf6+ {[%clk 0:00:08]}  Kxh6 {[%clk 0:01:01]} 48. Kd5 {[%clk 0:00:09]}  Bf2 {[%clk 0:00:59]} 49. e5 {[%clk 0:00:09]}  Bxh4 {[%clk 0:00:59]} 0-1


[Site "https://www.chess.com"]

[Event "Titled Tuesday Blitz March 21 Late 2023"]
[White "Jaracz, Pawel"]
[Black "Torres Dominguez, David"]
[WhiteFideId "1102222"]
[BlackFideId "2220857"]
[WhiteElo "2438"]
[BlackElo "1999"]
[Result "0-1"]
[Round "05"]
[TimeControl "180+2"]
[Date "2023.03.21"]
[WhiteClock "0:00:01"]
[BlackClock "0:00:13"]

1. d4 {[%clk 0:03:00]}  e5 {[%clk 0:02:55]} 2. dxe5 {[%clk 0:03:00]}  d6 {[%clk 0:02:56]} 3. Nf3 {[%clk 0:02:58]}  Be7 {[%clk 0:02:54]} 4. e4 {[%clk 0:02:51]}  Nc6 {[%clk 0:02:52]} 5. Bb5 {[%clk 0:02:50]}  Bg4 {[%clk 0:02:49]} 6. exd6 {[%clk 0:02:43]}  Bxd6 {[%clk 0:02:48]} 7. O-O {[%clk 0:02:42]}  Ne7 {[%clk 0:02:37]} 8. h3 {[%clk 0:02:30]}  Bxf3 {[%clk 0:02:36]} 9. Qxf3 {[%clk 0:02:30]}  a6 {[%clk 0:02:37]} 10. Bd3 {[%clk 0:02:09]}  Ne5 {[%clk 0:02:33]} 11. Qe2 {[%clk 0:02:09]}  Qd7 {[%clk 0:02:31]} 12. Nc3 {[%clk 0:02:02]}  O-O-O {[%clk 0:02:27]} 13. Be3 {[%clk 0:01:56]}  Nxd3 {[%clk 0:02:27]} 14. cxd3 {[%clk 0:01:55]}  f5 {[%clk 0:02:22]} 15. f4 {[%clk 0:01:44]}  Bb4 {[%clk 0:02:22]} 16. Rfd1 {[%clk 0:01:41]}  Qe6 {[%clk 0:02:21]} 17. Bf2 {[%clk 0:01:33]}  Bxc3 {[%clk 0:02:17]} 18. bxc3 {[%clk 0:01:33]}  Nd5 {[%clk 0:02:14]} 19. Bd4 {[%clk 0:00:55]}  Nxf4 {[%clk 0:02:11]} 20. Qf3 {[%clk 0:00:55]}  g5 {[%clk 0:01:56]} 21. Bxh8 {[%clk 0:00:54]}  Rxh8 {[%clk 0:01:56]} 22. Re1 {[%clk 0:00:51]}  Qc6 {[%clk 0:01:51]} 23. Rab1 {[%clk 0:00:48]}  Rf8 {[%clk 0:01:47]} 24. Kh2 {[%clk 0:00:44]}  h6 {[%clk 0:01:42]} 25. exf5 {[%clk 0:00:42]}  Qxf3 {[%clk 0:01:33]} 26. gxf3 {[%clk 0:00:43]}  Nxd3 {[%clk 0:01:29]} 27. Re3 {[%clk 0:00:38]}  Nf4 {[%clk 0:01:29]} 28. Rd1 {[%clk 0:00:36]}  b5 {[%clk 0:01:26]} 29. Re5 {[%clk 0:00:33]}  Nh5 {[%clk 0:01:24]} 30. Re7 {[%clk 0:00:31]}  Rxf5 {[%clk 0:01:19]} 31. Rd3 {[%clk 0:00:11]}  Nf4 {[%clk 0:01:16]} 32. Rde3 {[%clk 0:00:10]}  Nd5 {[%clk 0:01:13]} 33. Re8+ {[%clk 0:00:10]}  Kb7 {[%clk 0:01:12]} 34. Rd3 {[%clk 0:00:10]}  Nf4 {[%clk 0:01:01]} 35. Rd2 {[%clk 0:00:10]}  a5 {[%clk 0:00:53]} 36. Kg3 {[%clk 0:00:09]}  a4 {[%clk 0:00:49]} 37. Kg4 {[%clk 0:00:07]}  Rd5 {[%clk 0:00:42]} 38. Rxd5 {[%clk 0:00:07]}  Nxd5 {[%clk 0:00:41]} 39. c4 {[%clk 0:00:07]}  bxc4 {[%clk 0:00:37]} 40. Re4 {[%clk 0:00:04]}  c3 {[%clk 0:00:35]} 41. Kg3 {[%clk 0:00:02]}  c2 {[%clk 0:00:31]} 42. Rc4 {[%clk 0:00:02]}  Ne3 {[%clk 0:00:28]} 43. Rc3 {[%clk 0:00:02]}  Kb6 {[%clk 0:00:24]} 44. f4 {[%clk 0:00:02]}  gxf4+ {[%clk 0:00:18]} 45. Kf3 {[%clk 0:00:02]}  c5 {[%clk 0:00:13]} 46. a3 {[%clk 0:00:01]}  Kb5 {[%clk 0:00:13]} 0-1


[Site "https://www.chess.com"]

[Event "Titled Tuesday Blitz March 21 Late 2023"]
[White "Vovk, Orest"]
[Black "Deac, Bogdan-Daniel"]
[WhiteFideId "14113490"]
[BlackFideId "1226380"]
[WhiteElo "2215"]
[BlackElo "2649"]
[Result "0-1"]
[Round "05"]
[TimeControl "180+2"]
[Date "2023.03.21"]
[WhiteClock "0:00:03"]
[BlackClock "0:00:34"]

1. h4 {[%clk 0:03:00]}  d5 {[%clk 0:02:59]} 2. h5 {[%clk 0:03:01]}  e5 {[%clk 0:02:59]} 3. h6 {[%clk 0:03:01]}  Nxh6 {[%clk 0:02:58]} 4. d4 {[%clk 0:03:01]}  Nc6 {[%clk 0:02:44]} 5. Bxh6 {[%clk 0:02:58]}  gxh6 {[%clk 0:02:43]} 6. dxe5 {[%clk 0:02:57]}  Nxe5 {[%clk 0:02:43]} 7. Nf3 {[%clk 0:02:56]}  Nxf3+ {[%clk 0:02:33]} 8. gxf3 {[%clk 0:02:56]}  Bg7 {[%clk 0:02:32]} 9. Nc3 {[%clk 0:02:55]}  c6 {[%clk 0:02:24]} 10. Bh3 {[%clk 0:02:54]}  Bxh3 {[%clk 0:02:16]} 11. Rxh3 {[%clk 0:02:53]}  Qb6 {[%clk 0:02:15]} 12. Na4 {[%clk 0:02:45]}  Qa5+ {[%clk 0:02:13]} 13. c3 {[%clk 0:02:45]}  Rg8 {[%clk 0:02:13]} 14. Qb3 {[%clk 0:02:25]}  b5 {[%clk 0:02:00]} 15. Nc5 {[%clk 0:02:23]}  Bxc3+ {[%clk 0:02:00]} 16. Kf1 {[%clk 0:01:58]}  Bd4 {[%clk 0:01:56]} 17. Nd3 {[%clk 0:01:48]}  Rg6 {[%clk 0:01:42]} 18. e3 {[%clk 0:01:32]}  Bg7 {[%clk 0:01:26]} 19. Nf4 {[%clk 0:01:32]}  Rd6 {[%clk 0:01:26]} 20. Qc2 {[%clk 0:01:20]}  O-O-O {[%clk 0:01:20]} 21. Rc1 {[%clk 0:00:19]}  Kb8 {[%clk 0:01:14]} 22. b3 {[%clk 0:00:18]}  d4 {[%clk 0:01:10]} 23. exd4 {[%clk 0:00:14]}  Bxd4 {[%clk 0:01:08]} 24. Rd1 {[%clk 0:00:08]}  Bb6 {[%clk 0:00:51]} 25. Rxd6 {[%clk 0:00:07]}  Rxd6 {[%clk 0:00:52]} 26. Qxh7 {[%clk 0:00:06]}  Qd2 {[%clk 0:00:51]} 27. Qg8+ {[%clk 0:00:06]}  Kb7 {[%clk 0:00:46]} 28. Qg3 {[%clk 0:00:07]}  Bc7 {[%clk 0:00:36]} 29. Rh4 {[%clk 0:00:03]}  Rd4 {[%clk 0:00:34]} 0-1


[Site "https://www.chess.com"]

[Event "Titled Tuesday Blitz March 21 Late 2023"]
[White "Yeletsky, Ivan"]
[Black "Omelja, Artem"]
[WhiteFideId "24180327"]
[BlackFideId "14119846"]
[WhiteElo "2414"]
[BlackElo "2404"]
[Result "1-0"]
[Round "05"]
[TimeControl "180+2"]
[Date "2023.03.21"]
[WhiteClock "0:00:12"]
[BlackClock "0:00:02"]

1. b4 {[%clk 0:03:00]}  Nf6 {[%clk 0:02:53]} 2. Bb2 {[%clk 0:03:00]}  e6 {[%clk 0:02:52]} 3. b5 {[%clk 0:02:58]}  Be7 {[%clk 0:02:51]} 4. Nf3 {[%clk 0:02:58]}  O-O {[%clk 0:02:52]} 5. e3 {[%clk 0:02:58]}  b6 {[%clk 0:02:52]} 6. a4 {[%clk 0:02:57]}  a5 {[%clk 0:02:51]} 7. c4 {[%clk 0:02:44]}  Bb7 {[%clk 0:02:51]} 8. Nc3 {[%clk 0:02:45]}  d5 {[%clk 0:02:50]} 9. d4 {[%clk 0:02:41]}  Nbd7 {[%clk 0:02:49]} 10. Be2 {[%clk 0:02:28]}  Ne4 {[%clk 0:02:29]} 11. cxd5 {[%clk 0:02:23]}  exd5 {[%clk 0:02:26]} 12. O-O {[%clk 0:02:23]}  Ndf6 {[%clk 0:02:23]} 13. Ne5 {[%clk 0:02:17]}  Nxc3 {[%clk 0:02:14]} 14. Bxc3 {[%clk 0:02:17]}  Ne4 {[%clk 0:02:14]} 15. Be1 {[%clk 0:02:11]}  Bd6 {[%clk 0:02:12]} 16. f3 {[%clk 0:02:07]}  Bxe5 {[%clk 0:01:55]} 17. fxe4 {[%clk 0:01:55]}  Bd6 {[%clk 0:01:54]} 18. e5 {[%clk 0:01:56]}  Be7 {[%clk 0:01:54]} 19. Bd3 {[%clk 0:01:55]}  Bc8 {[%clk 0:01:47]} 20. Qc2 {[%clk 0:01:53]}  g6 {[%clk 0:01:20]} 21. Bg3 {[%clk 0:01:53]}  Be6 {[%clk 0:01:18]} 22. Bf4 {[%clk 0:01:51]}  Bg5 {[%clk 0:01:18]} 23. Rac1 {[%clk 0:01:50]}  Rc8 {[%clk 0:01:17]} 24. Qd2 {[%clk 0:01:38]}  Bxf4 {[%clk 0:00:57]} 25. Rxf4 {[%clk 0:01:27]}  Qg5 {[%clk 0:00:27]} 26. Qf2 {[%clk 0:01:23]}  Rfe8 {[%clk 0:00:19]} 27. h4 {[%clk 0:01:23]}  Qh6 {[%clk 0:00:17]} 28. Rc6 {[%clk 0:01:15]}  Re7 {[%clk 0:00:17]} 29. g3 {[%clk 0:00:58]}  Qg7 {[%clk 0:00:15]} 30. Rf6 {[%clk 0:00:58]}  Rce8 {[%clk 0:00:13]} 31. Qc2 {[%clk 0:00:55]}  Rc8 {[%clk 0:00:11]} 32. Qf2 {[%clk 0:00:52]}  Rce8 {[%clk 0:00:11]} 33. Rc1 {[%clk 0:00:52]}  Bc8 {[%clk 0:00:10]} 34. Qf4 {[%clk 0:00:52]}  Be6 {[%clk 0:00:10]} 35. Kf2 {[%clk 0:00:51]}  Kf8 {[%clk 0:00:10]} 36. g4 {[%clk 0:00:51]}  Rd7 {[%clk 0:00:10]} 37. g5 {[%clk 0:00:51]}  Ke7 {[%clk 0:00:10]} 38. Rh1 {[%clk 0:00:47]}  Kd8 {[%clk 0:00:10]} 39. h5 {[%clk 0:00:47]}  Qf8 {[%clk 0:00:11]} 40. hxg6 {[%clk 0:00:46]}  hxg6 {[%clk 0:00:12]} 41. Bxg6 {[%clk 0:00:41]}  Qb4 {[%clk 0:00:12]} 42. Bd3 {[%clk 0:00:27]}  Qxa4 {[%clk 0:00:09]} 43. g6 {[%clk 0:00:19]}  Qb4 {[%clk 0:00:06]} 44. gxf7 {[%clk 0:00:17]}  Bxf7 {[%clk 0:00:06]} 45. Rxf7 {[%clk 0:00:17]}  Rxf7 {[%clk 0:00:07]} 46. Qxf7 {[%clk 0:00:17]}  Rf8 {[%clk 0:00:08]} 47. Rh8 {[%clk 0:00:12]}  Qd2+ {[%clk 0:00:05]} 48. Be2 {[%clk 0:00:11]}  Rxh8 {[%clk 0:00:05]} 49. Qf6+ {[%clk 0:00:11]}  Kc8 {[%clk 0:00:06]} 50. Qxh8+ {[%clk 0:00:12]}  Kb7 {[%clk 0:00:05]} 51. Qf6 {[%clk 0:00:13]}  a4 {[%clk 0:00:02]} 52. Qc6+ {[%clk 0:00:14]}  Kb8 {[%clk 0:00:02]} 53. e6 {[%clk 0:00:13]}  Qc2 {[%clk 0:00:01]} 54. e7 {[%clk 0:00:12]}  Qf5+ {[%clk 0:00:02]} 55. Bf3 {[%clk 0:00:12]} 1-0


[Site "https://www.chess.com"]

[Event "Titled Tuesday Blitz March 21 Late 2023"]
[White "Nazari, Arad"]
[Black "Janaszak, Dawid"]
[WhiteFideId "12577324"]
[BlackFideId "1119206"]
[WhiteElo "2313"]
[BlackElo "2220"]
[Result "0-1"]
[Round "05"]
[TimeControl "180+2"]
[Date "2023.03.21"]
[WhiteClock "0:00:03"]
[BlackClock "0:00:16"]

1. e4 {[%clk 0:03:00]}  c5 {[%clk 0:02:56]} 2. Nf3 {[%clk 0:03:00]}  Nc6 {[%clk 0:02:55]} 3. Bb5 {[%clk 0:02:59]}  e5 {[%clk 0:02:51]} 4. O-O {[%clk 0:02:56]}  Nge7 {[%clk 0:02:51]} 5. c3 {[%clk 0:02:52]}  g6 {[%clk 0:02:52]} 6. d4 {[%clk 0:02:51]}  cxd4 {[%clk 0:02:52]} 7. cxd4 {[%clk 0:02:51]}  exd4 {[%clk 0:02:52]} 8. Bf4 {[%clk 0:02:39]}  Bg7 {[%clk 0:02:52]} 9. Bd6 {[%clk 0:02:38]}  O-O {[%clk 0:02:52]} 10. Na3 {[%clk 0:02:28]}  a6 {[%clk 0:02:50]} 11. Ba4 {[%clk 0:02:11]}  b5 {[%clk 0:02:50]} 12. Bb3 {[%clk 0:02:11]}  Bb7 {[%clk 0:02:48]} 13. Nc2 {[%clk 0:02:02]}  Na5 {[%clk 0:02:42]} 14. Ncxd4 {[%clk 0:02:00]}  Nxb3 {[%clk 0:02:41]} 15. Qxb3 {[%clk 0:01:54]}  Re8 {[%clk 0:02:38]} 16. Rfe1 {[%clk 0:01:36]}  Nc6 {[%clk 0:02:36]} 17. Nxc6 {[%clk 0:01:28]}  Bxc6 {[%clk 0:02:35]} 18. e5 {[%clk 0:01:25]}  Bxf3 {[%clk 0:02:04]} 19. Qxf3 {[%clk 0:01:26]}  Rc8 {[%clk 0:02:00]} 20. Rad1 {[%clk 0:01:22]}  Qa5 {[%clk 0:01:51]} 21. a3 {[%clk 0:01:10]}  Rc2 {[%clk 0:01:49]} 22. Bb4 {[%clk 0:01:05]}  Qc7 {[%clk 0:01:45]} 23. Bc3 {[%clk 0:01:05]}  Bxe5 {[%clk 0:01:01]} 24. Qd3 {[%clk 0:00:41]}  Rxc3 {[%clk 0:00:55]} 25. bxc3 {[%clk 0:00:38]}  Bxh2+ {[%clk 0:00:53]} 26. Kf1 {[%clk 0:00:37]}  Rxe1+ {[%clk 0:00:51]} 27. Rxe1 {[%clk 0:00:38]}  Be5 {[%clk 0:00:49]} 28. Re3 {[%clk 0:00:36]}  d6 {[%clk 0:00:47]} 29. g3 {[%clk 0:00:34]}  Kg7 {[%clk 0:00:47]} 30. Rf3 {[%clk 0:00:29]}  Qc5 {[%clk 0:00:41]} 31. a4 {[%clk 0:00:23]}  bxa4 {[%clk 0:00:39]} 32. Qxa6 {[%clk 0:00:23]}  a3 {[%clk 0:00:35]} 33. c4 {[%clk 0:00:20]}  Bb2 {[%clk 0:00:30]} 34. Kg1 {[%clk 0:00:17]}  Qh5 {[%clk 0:00:25]} 35. Kg2 {[%clk 0:00:16]}  Qe5 {[%clk 0:00:19]} 36. Qb7 {[%clk 0:00:15]}  Qe6 {[%clk 0:00:19]} 37. Qb3 {[%clk 0:00:15]}  h5 {[%clk 0:00:19]} 38. Re3 {[%clk 0:00:12]}  Qf6 {[%clk 0:00:18]} 39. Re8 {[%clk 0:00:09]}  Qf5 {[%clk 0:00:16]} 40. Ra8 {[%clk 0:00:05]}  Qe4+ {[%clk 0:00:15]} 41. Qf3 {[%clk 0:00:06]}  Qxc4 {[%clk 0:00:15]} 42. Ra7 {[%clk 0:00:01]}  Qe6 {[%clk 0:00:15]} 43. Qa8 {[%clk 0:00:02]}  Qf6 {[%clk 0:00:14]} 44. Rb7 {[%clk 0:00:01]}  Qe6 {[%clk 0:00:14]} 45. Qa6 {[%clk 0:00:02]}  Qe4+ {[%clk 0:00:14]} 46. Kg1 {[%clk 0:00:02]}  Qe1+ {[%clk 0:00:13]} 47. Kg2 {[%clk 0:00:03]}  Qe4+ {[%clk 0:00:14]} 48. Kh2 {[%clk 0:00:02]}  Qe6 {[%clk 0:00:15]} 49. Kg2 {[%clk 0:00:02]}  Qf6 {[%clk 0:00:15]} 50. Rb3 {[%clk 0:00:02]}  d5 {[%clk 0:00:15]} 51. Qa4 {[%clk 0:00:01]}  d4 {[%clk 0:00:15]} 52. Rf3 {[%clk 0:00:01]}  Qe6 {[%clk 0:00:14]} 53. Qc2 {[%clk 0:00:01]}  Qd5 {[%clk 0:00:14]} 54. Qb1 {[%clk 0:00:01]}  d3 {[%clk 0:00:14]} 55. Qxd3 {[%clk 0:00:02]}  Qxd3 {[%clk 0:00:15]} 56. Rxd3 {[%clk 0:00:02]}  a2 {[%clk 0:00:15]} 57. Rd1 {[%clk 0:00:03]}  a1=Q {[%clk 0:00:16]} 0-1


[Site "https://www.chess.com"]

[Event "Titled Tuesday Blitz March 21 Late 2023"]
[White "EREBUNI91"]
[Black "Papayan, Oleg"]
[BlackFideId "4193911"]
[WhiteElo "2712"]
[BlackElo "2153"]
[Result "1-0"]
[Round "05"]
[TimeControl "180+2"]
[Date "2023.03.21"]
[WhiteClock "0:02:18"]
[BlackClock "0:00:19"]

1. e4 {[%clk 0:03:00]}  d5 {[%clk 0:02:52]} 2. exd5 {[%clk 0:03:00]}  Qxd5 {[%clk 0:02:53]} 3. Nc3 {[%clk 0:03:00]}  Qa5 {[%clk 0:02:53]} 4. Nf3 {[%clk 0:02:57]}  Nf6 {[%clk 0:02:53]} 5. Bc4 {[%clk 0:02:57]}  a6 {[%clk 0:02:52]} 6. O-O {[%clk 0:02:56]}  b5 {[%clk 0:02:53]} 7. Be2 {[%clk 0:02:54]}  c5 {[%clk 0:02:38]} 8. d4 {[%clk 0:02:54]}  cxd4 {[%clk 0:02:29]} 9. Qxd4 {[%clk 0:02:52]}  Nc6 {[%clk 0:02:22]} 10. Qh4 {[%clk 0:02:43]}  e6 {[%clk 0:02:08]} 11. Bg5 {[%clk 0:02:43]}  Be7 {[%clk 0:02:05]} 12. Ne4 {[%clk 0:02:43]}  Nxe4 {[%clk 0:01:40]} 13. Qxe4 {[%clk 0:02:44]}  Bb7 {[%clk 0:01:24]} 14. Bxe7 {[%clk 0:02:43]}  Kxe7 {[%clk 0:01:25]} 15. Rfd1 {[%clk 0:02:43]}  Qb4 {[%clk 0:01:14]} 16. Qe3 {[%clk 0:02:30]}  Rhd8 {[%clk 0:00:39]} 17. Qb6 {[%clk 0:02:27]}  Rab8 {[%clk 0:00:24]} 18. Qc7+ {[%clk 0:02:24]}  Ke8 {[%clk 0:00:22]} 19. Rxd8+ {[%clk 0:02:21]}  Nxd8 {[%clk 0:00:17]} 20. Qxb8 {[%clk 0:02:19]}  Qxb2 {[%clk 0:00:18]} 21. Rd1 {[%clk 0:02:18]}  Qxc2 {[%clk 0:00:19]} 22. Qxd8# {[%clk 0:02:18]} 1-0


[Site "https://www.chess.com"]